[Event "RUS-chT Blitz Men 2018"]
[Site "Sochi"]
[Date "2018.10.10"]
[Round "6"]
[White "Pingin, Artem"]
[Black "Pervakov, Sergey"]
[Result "1/2-1/2"]
[ECO "B03"]
[WhiteElo "1761"]
[BlackElo "2098"]
[Annotator "NA RC"]
[PlyCount "85"]
[EventDate "2018.10.10"]
[EventType "swiss"]
[EventCountry "RUS"]
[SourceTitle "playchess.com"]
[Source "ChessBase"]
[SourceQuality "1"]
[TimeControl "180+2"]

1. e4 {[%emt 0:00:00]} Nf6 {[%emt 0:00:00]} 2. e5 {[%emt 0:00:00]} Nd5 {[%emt 0:00:01]} 3. c4 {[%emt 0:00:01]} Nb6 {[%emt 0:00:01]} 4. d4 {[%emt 0:00:01]} d6 {[%emt 0:00:00]} 5. exd6 {[%emt 0:00:01]} cxd6 {[%emt 0:00:01]} 6. Nf3 {[%emt 0:00:03]} g6 {[%emt 0:00:01]} 7. Nc3 {[%emt 0:00:02]} Bg7 {[%emt 0:00:01]} 8. Be2 {[%emt 0:00:02]} O-O {[%emt 0:00:02]} 9. O-O {[%emt 0:00:07]} Nc6 {[%emt 0:00:01]} 10. Be3 {[%emt 0:00:02]} Bg4 {[%emt 0:00:01]} 11. b3 {[%emt 0:00:01]} Bxf3 {[%emt 0:00:07]} 12. Bxf3 {[%emt 0:00:02]} f5 {[%emt 0:00:01]} 13. Ne2 {[%emt 0:00:17]} e5 {[%emt 0:00:06]} 14. Bxc6 {[%emt 0:00:42]} bxc6 {[%emt 0:00:02]} 15. dxe5 {[%emt 0:00:01]} dxe5 {[%emt 0:00:02]} 16. Bc5 {[%emt 0:00:03]} Qxd1 {[%emt 0:00:17]} 17. Raxd1 {[%emt 0:00:01]} Rfd8 {[%emt 0:00:01]} 18. Nc3 {[%emt 0:00:08]} e4 19. Rxd8+ {[%emt 0:00:16]} Rxd8 {[%emt 0:00:15]} 20. Rd1 {[%emt 0:00:02]} Rxd1+ {[%emt 0:00:40]} 21. Nxd1 {[%emt 0:00:00]} Kf7 {[%emt 0:00:01]} 22. f3 {[%emt 0:00:31]} exf3 {[%emt 0:00:01]} 23. gxf3 {[%emt 0:00:01]} Ke6 {[%emt 0:00:02]} 24. Kf2 {[%emt 0:00:00]} Be5 {[%emt 0:00:15]} 25. h3 {[%emt 0:00:06]} Bd6 {[%emt 0:00:31]} 26. Be3 {[%emt 0:00:19]} f4 {[%emt 0:00:06]} 27. Bd4 {[%emt 0:00:02]} Be5 {[%emt 0:00:02]} 28. Bc5 {[%emt 0:00:03]} Nd7 {[%emt 0:00:07]} 29. Bxa7 {[%emt 0:00:38]} c5 {[%emt 0:00:00]} 30. a3 {[%emt 0:00:01]} Kd6 {[%emt 0:00:24]} 31. b4 {[%emt 0:00:03]} Kc6 {[%emt 0:00:06]} 32. Ke2 {[%emt 0:00:07]} Bd4 {[%emt 0:00:07]} 33. Nf2 {[%emt 0:00:12]} Ne5 {[%emt 0:00:12]} 34. Ne4 {[%emt 0:00:03]} Nxc4 {[%emt 0:00:04]} 35. Bxc5 {[%emt 0:00:02]} Bxc5 {[%emt 0:00:04]} 36. Nxc5 {[%emt 0:00:01]} Nxa3 {[%emt 0:00:01]} 37. Nd3 {[%emt 0:00:04]} g5 {[%emt 0:00:02]} 38. Kf2 {[%emt 0:00:04]} Kb5 {[%emt 0:00:04]} 39. h4 {[%emt 0:00:01]} h6 {[%emt 0:00:03]} 40. hxg5 hxg5 {[%emt 0:00:01]} 41. Ne5 {[%emt 0:00:03]} Kxb4 42. Nf7 Nc4 {[%emt 0:00:17]} 43. Nxg5 {[%emt 0:00:02]} 1/2-1/2

[Event "RUS-chT Blitz Men 2018"]
[Site "Sochi"]
[Date "2018.10.10"]
[Round "7"]
[White "Gogolev, Artem"]
[Black "Uzhva, Andrey"]
[Result "1/2-1/2"]
[ECO "A05"]
[WhiteElo "2389"]
[BlackElo "2270"]
[Annotator "NA"]
[PlyCount "37"]
[EventDate "2018.10.10"]
[EventType "swiss"]
[EventCountry "RUS"]
[SourceTitle "playchess.com"]
[Source "ChessBase"]
[SourceQuality "1"]
[TimeControl "180+2"]

1. Nf3 {[%emt 0:00:00]} Nf6 {[%emt 0:00:00]} 2. g3 {[%emt 0:00:00]} g6 {[%emt 0:00:00]} 3. b3 {[%emt 0:00:01]} Bg7 {[%emt 0:00:00]} 4. Bb2 {[%emt 0:00:01]} b6 {[%emt 0:00:02]} 5. Bg2 {[%emt 0:00:01]} Bb7 {[%emt 0:00:01]} 6. O-O {[%emt 0:00:03]} O-O {[%emt 0:00:01]} 7. c4 {[%emt 0:00:01]} c5 {[%emt 0:00:01]} 8. Nc3 {[%emt 0:00:03]} Nc6 {[%emt 0:00:01]} 9. e3 {[%emt 0:00:03]} d5 {[%emt 0:00:37]} 10. Nxd5 {[%emt 0:00:19]} Nxd5 {[%emt 0:00:02]} 11. Bxg7 {[%emt 0:00:02]} Nxe3 {[%emt 0:00:23]} 12. dxe3 {[%emt 0:00:04]} Kxg7 {[%emt 0:00:02]} 13. Qc2 {[%emt 0:00:12]} Qc7 {[%emt 0:00:29]} 14. Qc3+ {[%emt 0:00:06]} Kg8 {[%emt 0:00:01]} 15. Rad1 {[%emt 0:00:02]} Rad8 {[%emt 0:00:02]} 16. h4 {[%emt 0:00:04]} h5 {[%emt 0:00:21]} 17. a3 {[%emt 0:00:14]} Rd7 {[%emt 0:00:11]} 18. Rxd7 {[%emt 0:01:01]} Qxd7 {[%emt 0:00:01]} 19. b4 {[%emt 0:00:06]} 1/2-1/2

[Event "RUS-chT Blitz Men 2018"]
[Site "Sochi"]
[Date "2018.10.10"]
[Round "7"]
[White "Linker, Mikhail"]
[Black "Afanasiev, Nikita"]
[Result "0-1"]
[ECO "A40"]
[WhiteElo "2269"]
[BlackElo "2487"]
[Annotator "RC"]
[PlyCount "92"]
[EventDate "2018.10.10"]
[EventType "swiss"]
[EventCountry "RUS"]
[SourceTitle "playchess.com"]
[Source "ChessBase"]
[SourceQuality "1"]
[TimeControl "180+2"]

1. d4 {[%emt 0:00:00]} Nf6 {[%emt 0:00:00]} 2. c4 {[%emt 0:00:01]} e6 {[%emt 0:00:01]} 3. g3 {[%emt 0:00:01]} c5 {[%emt 0:00:06]} 4. d5 {[%emt 0:00:00]} exd5 {[%emt 0:00:01]} 5. cxd5 {[%emt 0:00:02]} Bd6 {[%emt 0:00:02]} 6. Nc3 {[%emt 0:00:01]} O-O {[%emt 0:00:03]} 7. Bg2 {[%emt 0:00:01]} a6 {[%emt 0:00:01]} 8. a4 {[%emt 0:00:01]} Re8 {[%emt 0:00:02]} 9. Nf3 {[%emt 0:00:01]} Bc7 {[%emt 0:00:02]} 10. O-O {[%emt 0:00:02]} d6 {[%emt 0:00:02]} 11. Bf4 {[%emt 0:00:06]} Nbd7 {[%emt 0:00:08]} 12. Re1 {[%emt 0:00:03]} Ng4 {[%emt 0:00:24]} 13. e4 {[%emt 0:00:08]} Nde5 {[%emt 0:00:11]} 14. Nxe5 {[%emt 0:00:14]} Nxe5 {[%emt 0:00:01]} 15. h3 {[%emt 0:00:16]} Qf6 {[%emt 0:00:08]} 16. Bxe5 {[%emt 0:00:19]} Qxe5 {[%emt 0:00:16]} 17. f4 {[%emt 0:00:03]} Qe7 {[%emt 0:00:23]} 18. Kh2 Rb8 19. e5 {[%emt 0:00:31]} dxe5 {[%emt 0:00:04]} 20. Ne4 {[%emt 0:00:23]} Bd6 {[%emt 0:00:01]} 21. Qh5 {[%emt 0:00:07]} g6 {[%emt 0:00:16]} 22. Qg5 {[%emt 0:00:00]} Qxg5 {[%emt 0:00:19]} 23. fxg5 {[%emt 0:00:01]} Rd8 {[%emt 0:00:05]} 24. Nxd6 {[%emt 0:00:02]} Rxd6 {[%emt 0:00:02]} 25. Rxe5 {[%emt 0:00:01]} Bd7 {[%emt 0:00:08]} 26. a5 {[%emt 0:00:27]} Kf8 {[%emt 0:00:04]} 27. Rc1 {[%emt 0:00:09]} b6 {[%emt 0:00:02]} 28. axb6 {[%emt 0:00:01]} Rbxb6 {[%emt 0:00:01]} 29. Re2 {[%emt 0:00:23]} Rb5 {[%emt 0:00:04]} 30. Rec2 {[%emt 0:00:01]} Rdb6 {[%emt 0:00:03]} 31. Rxc5 {[%emt 0:00:02]} Rxc5 {[%emt 0:00:08]} 32. Rxc5 {[%emt 0:00:01]} Rxb2 {[%emt 0:00:01]} 33. Rc7 {[%emt 0:00:22]} Ke7 {[%emt 0:00:03]} 34. Ra7 {[%emt 0:00:01]} Ra2 {[%emt 0:00:06]} 35. Kg1 {[%emt 0:00:03]} Kd6 {[%emt 0:00:01]} 36. Bf1 {[%emt 0:00:02]} a5 {[%emt 0:00:02]} 37. h4 {[%emt 0:00:06]} a4 {[%emt 0:00:02]} 38. Bc4 {[%emt 0:00:00]} Rc2 {[%emt 0:00:03]} 39. Ra6+ {[%emt 0:00:01]} Kc5 {[%emt 0:00:17]} 40. Bd3 {[%emt 0:00:01]} Rd2 {[%emt 0:00:05]} 41. Be4 {[%emt 0:00:01]} Kb4 {[%emt 0:00:05]} 42. Ra7 {[%emt 0:00:01]} Bb5 {[%emt 0:00:11]} 43. Rxf7 {[%emt 0:00:13]} a3 {[%emt 0:00:01]} 44. Ra7 {[%emt 0:00:03]} a2 {[%emt 0:00:01]} 45. d6 {[%emt 0:00:03]} Ba4 {[%emt 0:00:05]} 46. Rb7+ {[%emt 0:00:03]} Ka3 {[%emt 0:00:03]} 0-1

[Event "RUS-chT Blitz Men 2018"]
[Site "Sochi"]
[Date "2018.10.10"]
[Round "7"]
[White "Pervakov, Sergey"]
[Black "Apryshko, Gleb"]
[Result "0-1"]
[ECO "B06"]
[WhiteElo "2098"]
[BlackElo "2399"]
[Annotator "NA"]
[PlyCount "63"]
[EventDate "2018.10.10"]
[EventType "swiss"]
[EventCountry "RUS"]
[SourceTitle "playchess.com"]
[Source "ChessBase"]
[SourceQuality "1"]
[TimeControl "180+2"]

1. e4 g6 2. d4 Bg7 3. Nc3 {[%emt 0:00:03]} d6 {[%emt 0:00:00]} 4. Nf3 {[%emt 0:00:01]} a6 {[%emt 0:00:00]} 5. a4 {[%emt 0:00:01]} b6 {[%emt 0:00:00]} 6. Be2 {[%emt 0:00:05]} Nd7 {[%emt 0:00:01]} 7. O-O {[%emt 0:00:02]} e6 {[%emt 0:00:00]} 8. Bg5 {[%emt 0:00:06]} Ne7 {[%emt 0:00:02]} 9. Qd2 h6 10. Be3 {[%emt 0:00:05]} Bb7 {[%emt 0:00:01]} 11. Rfe1 {[%emt 0:00:07]} g5 {[%emt 0:00:00]} 12. h3 {[%emt 0:00:03]} Ng6 {[%emt 0:00:01]} 13. Rad1 {[%emt 0:00:03]} c5 {[%emt 0:00:03]} 14. d5 {[%emt 0:00:13]} Bf8 {[%emt 0:00:24]} 15. dxe6 {[%emt 0:00:06]} fxe6 {[%emt 0:00:00]} 16. Bc4 {[%emt 0:00:07]} Qf6 {[%emt 0:00:02]} 17. a5 {[%emt 0:00:37]} b5 {[%emt 0:00:00]} 18. Bxb5 axb5 19. Nxb5 {[%emt 0:00:05]} Ra6 {[%emt 0:00:23]} 20. Nc7+ {[%emt 0:00:26]} Kf7 {[%emt 0:00:01]} 21. Nxa6 {[%emt 0:00:03]} Bxa6 {[%emt 0:00:00]} 22. b4 {[%emt 0:00:17]} Bb5 {[%emt 0:00:43]} 23. bxc5 {[%emt 0:00:06]} dxc5 {[%emt 0:00:05]} 24. Rb1 Bc6 25. e5 Qf5 26. a6 Be7 27. a7 {[%emt 0:01:11]} Ra8 {[%emt 0:00:06]} 28. Ra1 Bxf3 29. Qxd7 {[%emt 0:00:06]} Nxe5 {[%emt 0:00:01]} 30. Qd2 {[%emt 0:00:02]} Bd5 {[%emt 0:00:21]} 31. Qc3 {[%emt 0:00:01]} Nc4 {[%emt 0:00:19]} 32. Ra6 {[%emt 0:00:08]} 0-1

[Event "RUS-chT Blitz Men 2018"]
[Site "Sochi"]
[Date "2018.10.10"]
[Round "7"]
[White "Tatarintsev, Egor"]
[Black "Tsvetkov, Andrey"]
[Result "0-1"]
[ECO "B22"]
[WhiteElo "2086"]
[BlackElo "2264"]
[Annotator "NA RC"]
[PlyCount "118"]
[EventDate "2018.10.10"]
[EventType "swiss"]
[EventCountry "RUS"]
[SourceTitle "playchess.com"]
[Source "ChessBase"]
[SourceQuality "1"]
[TimeControl "180+2"]

1. e4 {[%emt 0:00:00]} c5 {[%emt 0:00:00]} 2. c3 {[%emt 0:00:01]} d5 {[%emt 0:00:00]} 3. exd5 {[%emt 0:00:01]} Qxd5 {[%emt 0:00:01]} 4. Nf3 {[%emt 0:00:01]} Nf6 {[%emt 0:00:02]} 5. Na3 {[%emt 0:00:03]} Bg4 {[%emt 0:00:03]} 6. Be2 {[%emt 0:00:02]} Nc6 {[%emt 0:00:08]} 7. O-O {[%emt 0:00:03]} e6 {[%emt 0:00:01]} 8. d4 {[%emt 0:00:17]} Be7 {[%emt 0:00:11]} 9. Nc2 {[%emt 0:00:21]} O-O {[%emt 0:00:04]} 10. Ne3 {[%emt 0:00:01]} Qd8 {[%emt 0:00:07]} 11. Nxg4 Nxg4 12. h3 {[%emt 0:00:26]} Nf6 {[%emt 0:00:09]} 13. Bb5 {[%emt 0:00:14]} Qc7 {[%emt 0:00:05]} 14. Bxc6 {[%emt 0:00:13]} Qxc6 {[%emt 0:00:01]} 15. Ne5 {[%emt 0:00:03]} Qd5 {[%emt 0:00:03]} 16. Be3 {[%emt 0:00:08]} Rfd8 {[%emt 0:00:02]} 17. Qf3 {[%emt 0:00:05]} cxd4 {[%emt 0:00:17]} 18. Bxd4 {[%emt 0:00:05]} a6 {[%emt 0:00:13]} 19. Rad1 {[%emt 0:00:20]} Qxf3 {[%emt 0:00:12]} 20. Nxf3 {[%emt 0:00:01]} b5 {[%emt 0:00:05]} 21. Rd2 {[%emt 0:00:09]} Rac8 {[%emt 0:00:11]} 22. Rfd1 {[%emt 0:00:01]} Nd5 {[%emt 0:00:05]} 23. Kf1 {[%emt 0:00:22]} b4 {[%emt 0:00:02]} 24. g3 {[%emt 0:00:18]} f6 {[%emt 0:00:15]} 25. Ke2 {[%emt 0:00:17]} Kf7 {[%emt 0:00:00]} 26. Ne1 {[%emt 0:00:07]} bxc3 {[%emt 0:00:04]} 27. bxc3 {[%emt 0:00:04]} Rxc3 {[%emt 0:00:05]} 28. Nf3 {[%emt 0:00:07]} Rcc8 {[%emt 0:00:10]} 29. Ke1 {[%emt 0:00:01]} Bb4 {[%emt 0:00:05]} 30. Ke2 {[%emt 0:00:04]} Bxd2 {[%emt 0:00:03]} 31. Rxd2 {[%emt 0:00:00]} Nb4 {[%emt 0:00:04]} 32. a3 {[%emt 0:00:03]} Nc6 {[%emt 0:00:04]} 33. Bc3 {[%emt 0:00:03]} Rxd2+ {[%emt 0:00:01]} 34. Nxd2 {[%emt 0:00:01]} e5 {[%emt 0:00:02]} 35. Nc4 {[%emt 0:00:02]} Ke6 {[%emt 0:00:01]} 36. Kd2 {[%emt 0:00:01]} Nd4 {[%emt 0:00:03]} 37. Bxd4 {[%emt 0:00:03]} Rxc4 {[%emt 0:00:01]} 38. Bc3 {[%emt 0:00:02]} Kd5 {[%emt 0:00:04]} 39. Kd3 {[%emt 0:00:01]} g6 {[%emt 0:00:01]} 40. Ba5 {[%emt 0:00:03]} f5 {[%emt 0:00:02]} 41. h4 {[%emt 0:00:03]} e4+ {[%emt 0:00:01]} 42. Kd2 {[%emt 0:00:00]} Ra4 {[%emt 0:00:04]} 43. Bb4 {[%emt 0:00:01]} Kc4 {[%emt 0:00:01]} 44. Bd6 {[%emt 0:00:03]} Kb3 {[%emt 0:00:02]} 45. Ke3 {[%emt 0:00:01]} Rxa3 {[%emt 0:00:02]} 46. Bxa3 {[%emt 0:00:02]} Kxa3 {[%emt 0:00:01]} 47. Kf4 {[%emt 0:00:01]} Kb3 {[%emt 0:00:01]} 48. Kg5 a5 49. Kh6 {[%emt 0:00:01]} a4 {[%emt 0:00:01]} 50. Kxh7 {[%emt 0:00:01]} a3 {[%emt 0:00:01]} 51. Kxg6 {[%emt 0:00:01]} a2 {[%emt 0:00:00]} 52. Kxf5 {[%emt 0:00:05]} a1=Q {[%emt 0:00:02]} 53. Kxe4 {[%emt 0:00:01]} Kc4 {[%emt 0:00:03]} 54. Kf4 {[%emt 0:00:01]} Kd5 {[%emt 0:00:01]} 55. Kg4 {[%emt 0:00:02]} Ke5 {[%emt 0:00:01]} 56. f4+ {[%emt 0:00:00]} Kf6 {[%emt 0:00:00]} 57. h5 {[%emt 0:00:02]} Qd1+ {[%emt 0:00:01]} 58. Kh4 {[%emt 0:00:02]} Kf5 {[%emt 0:00:01]} 59. g4+ {[%emt 0:00:04]} Qxg4# {[%emt 0:00:01]} 0-1

[Event "RUS-chT Blitz Men 2018"]
[Site "Sochi"]
[Date "2018.10.10"]
[Round "7"]
[White "Mochalin, Faddey"]
[Black "Popov, Maksim"]
[Result "1-0"]
[ECO "A59"]
[WhiteElo "2032"]
[BlackElo "1570"]
[Annotator "NA RC"]
[PlyCount "108"]
[EventDate "2018.10.10"]
[EventType "swiss"]
[EventCountry "RUS"]
[SourceTitle "playchess.com"]
[Source "ChessBase"]
[SourceQuality "1"]
[TimeControl "180+2"]

1. d4 {[%emt 0:00:00]} Nf6 {[%emt 0:00:00]} 2. c4 {[%emt 0:00:00]} c5 {[%emt 0:00:00]} 3. d5 {[%emt 0:00:00]} b5 {[%emt 0:00:01]} 4. cxb5 a6 {[%emt 0:00:03]} 5. bxa6 {[%emt 0:00:02]} Bxa6 {[%emt 0:00:01]} 6. Nc3 {[%emt 0:00:01]} d6 {[%emt 0:00:01]} 7. e4 {[%emt 0:00:01]} Bxf1 {[%emt 0:00:02]} 8. Kxf1 {[%emt 0:00:00]} g6 {[%emt 0:00:01]} 9. g3 {[%emt 0:00:01]} Bg7 {[%emt 0:00:01]} 10. Kg2 {[%emt 0:00:01]} O-O {[%emt 0:00:04]} 11. Nf3 {[%emt 0:00:00]} Nbd7 {[%emt 0:00:08]} 12. a4 {[%emt 0:00:01]} Nb6 {[%emt 0:00:35]} 13. Nd2 {[%emt 0:00:18]} e6 {[%emt 0:00:05]} 14. dxe6 {[%emt 0:00:03]} fxe6 {[%emt 0:00:01]} 15. Nb5 {[%emt 0:00:10]} d5 {[%emt 0:00:33]} 16. exd5 {[%emt 0:00:24]} Nfxd5 {[%emt 0:00:29]} 17. Ne4 {[%emt 0:00:09]} Nc4 {[%emt 0:00:27]} 18. Qc2 {[%emt 0:00:19]} Ne5 {[%emt 0:00:27]} 19. Ra3 {[%emt 0:00:02]} c4 {[%emt 0:00:03]} 20. Rf1 {[%emt 0:01:14]} Rc8 {[%emt 0:00:11]} 21. a5 {[%emt 0:00:13]} Nd3 {[%emt 0:00:03]} 22. Rxd3 {[%emt 0:00:40]} cxd3 23. Qxd3 {[%emt 0:00:01]} Qxa5 {[%emt 0:00:05]} 24. Nd4 {[%emt 0:00:04]} Bxd4 {[%emt 0:00:08]} 25. Qxd4 {[%emt 0:00:01]} Qb4 {[%emt 0:00:06]} 26. Qe5 {[%emt 0:00:01]} Rce8 {[%emt 0:00:05]} 27. Bh6 {[%emt 0:00:02]} Rf7 {[%emt 0:00:01]} 28. Nd6 Qb8 {[%emt 0:00:09]} 29. Nxf7 {[%emt 0:00:05]} Qxe5 30. Nxe5 Rb8 31. Bc1 {[%emt 0:00:04]} Kg7 {[%emt 0:00:05]} 32. Rd1 {[%emt 0:00:02]} Rb7 {[%emt 0:00:00]} 33. Rd3 {[%emt 0:00:01]} Kf6 {[%emt 0:00:01]} 34. Ng4+ {[%emt 0:00:02]} Kf5 {[%emt 0:00:02]} 35. Ne3+ {[%emt 0:00:01]} Nxe3+ {[%emt 0:00:01]} 36. Rxe3 {[%emt 0:00:01]} e5 {[%emt 0:00:00]} 37. b3 {[%emt 0:00:02]} Rb4 {[%emt 0:00:01]} 38. Bb2 {[%emt 0:00:01]} e4 {[%emt 0:00:01]} 39. Ba3 Rb5 40. b4 {[%emt 0:00:05]} h5 {[%emt 0:00:01]} 41. h4 {[%emt 0:00:00]} g5 {[%emt 0:00:02]} 42. hxg5 {[%emt 0:00:01]} Rb6 {[%emt 0:00:03]} 43. Rb3 {[%emt 0:00:03]} Kxg5 {[%emt 0:00:02]} 44. b5 {[%emt 0:00:01]} h4 {[%emt 0:00:06]} 45. gxh4+ {[%emt 0:00:01]} Kxh4 {[%emt 0:00:01]} 46. Bc5 {[%emt 0:00:02]} Rb7 47. b6 {[%emt 0:00:01]} Rg7+ {[%emt 0:00:07]} 48. Kf1 {[%emt 0:00:00]} Rb7 {[%emt 0:00:02]} 49. Be3 {[%emt 0:00:01]} Kg4 {[%emt 0:00:01]} 50. Rc3 {[%emt 0:00:01]} Kf3 {[%emt 0:00:03]} 51. Rc7 Rb8 52. b7 {[%emt 0:00:04]} Rd8 {[%emt 0:00:02]} 53. Rf7+ {[%emt 0:00:02]} Kg4 {[%emt 0:00:03]} 54. Bf4 {[%emt 0:00:01]} e3 1-0

[Event "RUS-chT Blitz Men 2018"]
[Site "Sochi"]
[Date "2018.10.10"]
[Round "8"]
[White "Ozgibcev, Anatoly"]
[Black "Sychev, Klementy"]
[Result "0-1"]
[ECO "B22"]
[WhiteElo "2368"]
[BlackElo "2534"]
[Annotator "RC"]
[PlyCount "92"]
[EventDate "2018.10.10"]
[EventType "swiss"]
[EventCountry "RUS"]
[SourceTitle "playchess.com"]
[Source "ChessBase"]
[SourceQuality "1"]
[TimeControl "180+2"]

1. e4 {[%emt 0:00:00]} c5 {[%emt 0:00:00]} 2. c3 {[%emt 0:00:00]} d5 {[%emt 0:00:03]} 3. exd5 {[%emt 0:00:01]} Qxd5 {[%emt 0:00:01]} 4. d4 {[%emt 0:00:01]} Nf6 {[%emt 0:00:02]} 5. Nf3 {[%emt 0:00:01]} e6 {[%emt 0:00:00]} 6. Na3 {[%emt 0:00:01]} Nc6 {[%emt 0:00:01]} 7. Nb5 {[%emt 0:00:02]} Qd8 {[%emt 0:00:02]} 8. dxc5 {[%emt 0:00:02]} Bxc5 {[%emt 0:00:03]} 9. Qxd8+ {[%emt 0:00:02]} Kxd8 {[%emt 0:00:01]} 10. Bg5 {[%emt 0:00:01]} Ke7 {[%emt 0:00:08]} 11. Rd1 {[%emt 0:00:05]} h6 {[%emt 0:00:02]} 12. Bh4 {[%emt 0:00:02]} g5 {[%emt 0:00:08]} 13. Bg3 {[%emt 0:00:01]} Ne4 {[%emt 0:00:01]} 14. Nbd4 {[%emt 0:00:26]} Nxg3 {[%emt 0:00:30]} 15. Nxc6+ {[%emt 0:00:11]} bxc6 {[%emt 0:00:01]} 16. hxg3 {[%emt 0:00:01]} Bd7 {[%emt 0:00:13]} 17. Ne5 {[%emt 0:00:09]} Be8 {[%emt 0:00:01]} 18. Be2 {[%emt 0:00:03]} Rb8 {[%emt 0:00:04]} 19. b3 {[%emt 0:00:11]} Bd6 {[%emt 0:00:06]} 20. Nc4 {[%emt 0:00:06]} Bc7 {[%emt 0:00:02]} 21. O-O {[%emt 0:00:14]} h5 {[%emt 0:00:02]} 22. Ne3 {[%emt 0:00:16]} g4 {[%emt 0:00:17]} 23. Rfe1 {[%emt 0:00:03]} Be5 {[%emt 0:00:11]} 24. Rd3 {[%emt 0:00:06]} Rd8 {[%emt 0:00:05]} 25. Red1 {[%emt 0:00:05]} Rxd3 {[%emt 0:00:06]} 26. Rxd3 {[%emt 0:00:01]} f5 {[%emt 0:00:02]} 27. b4 {[%emt 0:00:15]} Bg6 {[%emt 0:00:08]} 28. Nc4 {[%emt 0:00:02]} Bc7 {[%emt 0:00:04]} 29. Rd2 {[%emt 0:00:08]} h4 {[%emt 0:00:04]} 30. gxh4 Rxh4 {[%emt 0:00:01]} 31. g3 {[%emt 0:00:03]} Rh8 {[%emt 0:00:04]} 32. Bf1 {[%emt 0:00:01]} f4 {[%emt 0:00:24]} 33. Bg2 {[%emt 0:00:13]} fxg3 {[%emt 0:00:10]} 34. fxg3 {[%emt 0:00:01]} Bxg3 {[%emt 0:00:04]} 35. Bxc6 {[%emt 0:00:01]} Bf4 {[%emt 0:00:04]} 36. Rd4 {[%emt 0:00:04]} e5 {[%emt 0:00:07]} 37. Rd7+ {[%emt 0:00:02]} Kf6 {[%emt 0:00:01]} 38. Nd6 {[%emt 0:00:03]} Rh2 {[%emt 0:00:10]} 39. Ne4+ {[%emt 0:00:07]} Bxe4 {[%emt 0:00:07]} 40. Bxe4 {[%emt 0:00:02]} Rxa2 {[%emt 0:00:02]} 41. c4 {[%emt 0:00:11]} Be3+ {[%emt 0:00:04]} 42. Kf1 {[%emt 0:00:01]} g3 {[%emt 0:00:01]} 43. Rd6+ {[%emt 0:00:03]} Kg5 {[%emt 0:00:01]} 44. Rg6+ {[%emt 0:00:02]} Kf4 {[%emt 0:00:01]} 45. Bd5 {[%emt 0:00:03]} e4 {[%emt 0:00:06]} 46. Rf6+ {[%emt 0:00:02]} Ke5 0-1

[Event "RUS-chT Blitz Men 2018"]
[Site "Sochi"]
[Date "2018.10.10"]
[Round "9"]
[White "Kryakvin, Dmitry"]
[Black "Iljiushenok, Ilia"]
[Result "1/2-1/2"]
[ECO "E97"]
[WhiteElo "2595"]
[BlackElo "2539"]
[Annotator "ChessBase"]
[PlyCount "45"]
[EventDate "2018.10.10"]
[EventType "swiss"]
[EventCountry "RUS"]
[SourceTitle "playchess.com"]
[Source "ChessBase"]
[SourceQuality "1"]
[TimeControl "180+2"]

1. d4 d6 2. Nf3 {[%emt 0:00:03]} Nf6 3. c4 g6 {[%emt 0:00:01]} 4. Nc3 {[%emt 0:00:01]} Bg7 {[%emt 0:00:01]} 5. e4 {[%emt 0:00:01]} O-O {[%emt 0:00:01]} 6. Be2 {[%emt 0:00:00]} e5 {[%emt 0:00:01]} 7. O-O {[%emt 0:00:01]} Nc6 {[%emt 0:00:01]} 8. dxe5 {[%emt 0:00:01]} dxe5 {[%emt 0:00:07]} 9. Bg5 {[%emt 0:00:01]} Qxd1 {[%emt 0:00:22]} 10. Rfxd1 {[%emt 0:00:01]} h6 {[%emt 0:00:03]} 11. Be3 {[%emt 0:00:12]} Bg4 {[%emt 0:00:08]} 12. h3 {[%emt 0:00:10]} Bxf3 {[%emt 0:00:02]} 13. Bxf3 {[%emt 0:00:01]} Rfd8 {[%emt 0:00:24]} 14. Nd5 {[%emt 0:00:06]} Ne8 {[%emt 0:00:15]} 15. h4 {[%emt 0:00:48]} Nd4 {[%emt 0:00:09]} 16. Bxd4 {[%emt 0:00:17]} exd4 {[%emt 0:00:01]} 17. Nf4 {[%emt 0:00:01]} h5 {[%emt 0:00:20]} 18. Nd3 {[%emt 0:00:05]} c6 {[%emt 0:00:03]} 19. g3 {[%emt 0:00:06]} Nc7 {[%emt 0:00:01]} 20. Bg2 {[%emt 0:00:06]} Ne6 {[%emt 0:00:10]} 21. e5 {[%emt 0:00:04]} Bf8 {[%emt 0:00:06]} 22. f4 {[%emt 0:00:07]} Nc5 {[%emt 0:00:06]} 23. Rac1 {[%emt 0:00:13]} 1/2-1/2

[Event "RUS-chT Blitz Men 2018"]
[Site "Sochi"]
[Date "2018.10.10"]
[Round "9"]
[White "Papenin, Nikolai"]
[Black "Mochalin, Faddey"]
[Result "1-0"]
[ECO "D45"]
[WhiteElo "2334"]
[BlackElo "2032"]
[Annotator "NA"]
[PlyCount "58"]
[EventDate "2018.10.10"]
[EventType "swiss"]
[EventCountry "RUS"]
[SourceTitle "playchess.com"]
[Source "ChessBase"]
[SourceQuality "1"]
[TimeControl "180+2"]

1. d4 {[%emt 0:00:00]} d5 {[%emt 0:00:00]} 2. Nf3 {[%emt 0:00:01]} Nf6 {[%emt 0:00:00]} 3. c4 {[%emt 0:00:02]} c6 {[%emt 0:00:01]} 4. Nc3 {[%emt 0:00:01]} e6 {[%emt 0:00:00]} 5. e3 {[%emt 0:00:02]} Nbd7 {[%emt 0:00:01]} 6. Qc2 {[%emt 0:00:01]} Bd6 {[%emt 0:00:01]} 7. Bd3 {[%emt 0:00:01]} O-O {[%emt 0:00:02]} 8. O-O {[%emt 0:00:01]} dxc4 9. Bxc4 {[%emt 0:00:01]} b5 {[%emt 0:00:02]} 10. Bd3 {[%emt 0:00:08]} Bb7 {[%emt 0:00:01]} 11. a3 {[%emt 0:00:02]} Qe7 {[%emt 0:00:17]} 12. h3 {[%emt 0:00:04]} Rfe8 {[%emt 0:00:11]} 13. Bd2 {[%emt 0:00:05]} a5 {[%emt 0:00:22]} 14. Rfe1 {[%emt 0:00:24]} e5 {[%emt 0:00:24]} 15. Ng5 {[%emt 0:00:11]} h6 {[%emt 0:00:29]} 16. Nge4 {[%emt 0:00:01]} Nxe4 {[%emt 0:00:17]} 17. Nxe4 {[%emt 0:00:01]} Bc7 {[%emt 0:00:38]} 18. b4 {[%emt 0:00:02]} axb4 {[%emt 0:00:18]} 19. axb4 {[%emt 0:00:01]} f5 {[%emt 0:00:20]} 20. Nc3 {[%emt 0:00:19]} e4 {[%emt 0:00:07]} 21. Bf1 {[%emt 0:00:04]} Bd6 {[%emt 0:00:01]} 22. d5 {[%emt 0:00:26]} Bxb4 {[%emt 0:00:05]} 23. Qb3 {[%emt 0:00:04]} cxd5 {[%emt 0:00:05]} 24. Nxd5 {[%emt 0:00:04]} Qf7 {[%emt 0:00:03]} 25. Qxb4 {[%emt 0:00:14]} Qxd5 {[%emt 0:00:01]} 26. Bxb5 {[%emt 0:00:04]} Qe5 {[%emt 0:00:03]} 27. Bc4+ {[%emt 0:00:02]} Kh8 {[%emt 0:00:01]} 28. Bc3 {[%emt 0:00:03]} Qe7 {[%emt 0:00:03]} 29. Qxb7 {[%emt 0:00:02]} Rxa1 {[%emt 0:00:05]} 1-0

[Event "RUS-chT Blitz Men 2018"]
[Site "Sochi"]
[Date "2018.10.10"]
[Round "9"]
[White "Truskavetsky, Alexandr"]
[Black "Oganian, Miran"]
[Result "0-1"]
[ECO "A50"]
[WhiteElo "2307"]
[BlackElo "2435"]
[Annotator "NA"]
[PlyCount "30"]
[EventDate "2018.10.10"]
[EventType "swiss"]
[EventCountry "RUS"]
[SourceTitle "playchess.com"]
[Source "ChessBase"]
[SourceQuality "1"]
[TimeControl "180+2"]

1. d4 {[%emt 0:00:00]} Nf6 {[%emt 0:00:00]} 2. c4 {[%emt 0:00:01]} Nc6 {[%emt 0:00:00]} 3. Nf3 {[%emt 0:00:02]} e6 {[%emt 0:00:01]} 4. g3 {[%emt 0:00:01]} Bb4+ {[%emt 0:00:01]} 5. Bd2 {[%emt 0:00:01]} Qe7 {[%emt 0:00:01]} 6. Bg2 {[%emt 0:00:01]} Bxd2+ {[%emt 0:00:01]} 7. Qxd2 {[%emt 0:00:01]} Ne4 {[%emt 0:00:01]} 8. Qc2 {[%emt 0:00:15]} Qb4+ {[%emt 0:00:01]} 9. Kf1 {[%emt 0:00:14]} d5 {[%emt 0:00:15]} 10. cxd5 {[%emt 0:00:15]} exd5 {[%emt 0:00:01]} 11. e3 {[%emt 0:00:01]} Bf5 {[%emt 0:00:07]} 12. Qe2 {[%emt 0:00:19]} O-O {[%emt 0:00:06]} 13. Ne1 {[%emt 0:00:20]} Rfe8 {[%emt 0:00:10]} 14. f3 {[%emt 0:00:10]} Nxd4 {[%emt 0:00:16]} 15. Nc2 {[%emt 0:00:50]} Nxc2 {[%emt 0:00:17]} 0-1